fUSD/lending_fUSD_20250818
["ID","MTS","AMOUNT","RATE_DAILY","PERIOD"]
[380070531,1755529669612,-400.0,0.00030136,120]
[380070532,1755529669658,-400.0,0.00030136,120]
[380070533,1755529669704,-400.0,0.00030136,120]
[380070534,1755529669753,-400.0,0.00030136,120]
[380070535,1755529669803,-527.69,0.00030136,120]
[380070536,1755529669852,-3261.55,0.00030136,120]
[380070537,1755529669901,-400.0,0.00030136,120]
[380070538,1755529669950,-1389.55,0.00030136,120]
[380070539,1755529670012,-400.0,0.00030136,120]
[380070540,1755529670062,-684.02,0.00030136,120]
[380070541,1755529670109,-448.38,0.00030136,120]
[380070542,1755529670156,-1082.98,0.00030136,120]
[380070543,1755529670204,-2464.2,0.00030136,120]
[380070544,1755529670252,-448.01,0.00030136,120]
[380070545,1755529670299,-1765.01,0.00030136,120]
[380070546,1755529670346,-400.0,0.00030136,120]
[380070547,1755529670394,-400.0,0.00030136,120]
[380070548,1755529670442,-400.0,0.00030136,120]
[380070549,1755529670490,-826.71,0.00030136,120]
[380070550,1755529670536,-400.0,0.00030136,120]
[380070551,1755529670584,-2098.54,0.00030136,120]
[380070552,1755529670629,-460.93,0.00030136,120]
[380070553,1755529670674,-400.0,0.00030136,120]
[380070554,1755529670721,-1741.47,0.00030136,120]
[380070555,1755529670771,-3486.06,0.00030136,120]
[380070556,1755529670818,-586.05,0.00030136,120]
[380070557,1755529670864,-400.0,0.00030136,120]
[380070558,1755529670911,-400.0,0.00030136,120]
[380070559,1755529670958,-400.0,0.00030136,120]
[380070560,1755529671004,-400.0,0.00030136,120]
[380070561,1755529671050,-1290.45,0.00030136,120]
[380070562,1755529671096,-1028.16,0.00030136,120]
[380070563,1755529671141,-4961.8,0.00030136,120]
[380070564,1755529671446,-400.0,0.00030136,120]
[380070565,1755529671494,-400.0,0.00030136,120]
[380070566,1755529671540,-400.0,0.00030136,120]
[380070567,1755529671588,-1581.4,0.00030136,120]
[380070568,1755529671634,-400.0,0.00030136,120]
[380070569,1755529671679,-400.0,0.00030136,120]
[380070570,1755529671723,-400.0,0.00030136,120]
[380070571,1755529671771,-195.9039634,0.00030136,120]
[380070572,1755529671816,-400.0,0.00030136,120]
[380070573,1755529671863,-3145.42,0.00030136,120]
[380070574,1755529671911,-400.0,0.00030136,120]
[380070575,1755529671961,-2273.89,0.00030136,120]
[380070576,1755529672011,-400.0,0.00030136,120]
[380070577,1755529672061,-2481.83,0.00030136,120]
[380070578,1755529672111,-400.0,0.00030136,120]
[380070579,1755529672161,-400.0,0.00030136,120]
[380070580,1755529672208,-400.0,0.00030136,120]
[380070581,1755529672258,-400.0,0.00030136,120]
[380070582,1755529672305,-3921.43,0.00030136,120]
[380070583,1755529672355,-400.0,0.00030136,120]
[380070584,1755529672412,-400.0,0.00030136,120]
[380070585,1755529672461,-400.0,0.00030136,120]
[380070586,1755529672509,-400.0,0.00030136,120]
[380070587,1755529672558,-400.0,0.00030136,120]
[380070588,1755529672604,-400.0,0.00030136,120]
[380070589,1755529672652,-505.79128613,0.00030136,120]
[380070590,1755529672697,-407.98,0.00030136,120]
[380070591,1755529672741,-400.0,0.00030136,120]
[380070592,1755529672786,-400.0,0.00030136,120]
[380070593,1755529672833,-400.0,0.00030136,120]
[380070594,1755529672881,-2440.48,0.00030136,120]
[380070595,1755529672928,-4450.57,0.00030136,120]
[380070596,1755529672974,-3978.67,0.00030136,120]
[380070597,1755529673019,-400.0,0.00030136,120]
[380070598,1755529673063,-1525.03,0.00030136,120]
[380070599,1755529673108,-400.0,0.00030136,120]
[380070600,1755529673154,-2247.16,0.00030136,120]
[380070601,1755529673199,-2840.9,0.00030136,120]
[380070602,1755529673246,-774.07,0.00030136,120]
[380070603,1755529673291,-400.0,0.00030136,120]
[380070604,1755529673336,-400.0,0.00030136,120]
[380070605,1755529673380,-400.0,0.00030136,120]
[380070606,1755529673423,-1187.02,0.00030136,120]
[380070607,1755529673464,-4021.39,0.00030136,120]
[380070608,1755529673508,-707.08,0.00030136,120]
[380070609,1755529673553,-1114.78,0.00030136,120]
[380070610,1755529673596,-400.0,0.00030136,120]
[380070611,1755529673640,-568.49,0.00030136,120]
[380070612,1755529673686,-978.5,0.00030136,120]
[380070613,1755529673735,-400.0,0.00030136,120]
[380070614,1755529673784,-400.0,0.00030136,120]
[380070615,1755529673834,-4666.61,0.00030136,120]
[380070616,1755529673888,-4797.15,0.00030136,120]
[380070617,1755529673941,-1386.88,0.00030136,120]
[380070618,1755529673994,-613.67,0.00030136,120]
[380070619,1755529674046,-408.79202168,0.00030136,120]
[380070620,1755529674095,-5029.39,0.00030136,120]
[380070621,1755529674145,-1049.25,0.00030136,120]
[380070622,1755529674192,-1262.04,0.00030136,120]
[380070623,1755529674240,-2947.96,0.00030136,120]
[380070624,1755529674288,-400.0,0.00030136,120]
[380070625,1755529674336,-4036.47,0.00030136,120]
[380070626,1755529674384,-400.0,0.00030136,120]
[380070627,1755529674431,-400.0,0.00030136,120]
[380070628,1755529674478,-2126.38,0.00030136,120]
[380070629,1755529674525,-1398.8,0.00030136,120]
[380070630,1755529674573,-400.0,0.00030136,120]
[380070631,1755529674619,-4405.84,0.00030136,120]
[380070632,1755529674667,-726.04,0.00030136,120]
[380070633,1755529674716,-3590.17,0.00030136,120]
[380070634,1755529674767,-1362.05,0.00030136,120]
[380070635,1755529674832,-400.0,0.00030136,120]
[380070636,1755529674882,-400.0,0.00030136,120]
[380070637,1755529674929,-942.52,0.00030136,120]
[380070638,1755529674979,-400.0,0.00030136,120]
[380070639,1755529675028,-400.0,0.00030136,120]
[380070640,1755529675077,-1011.35,0.00030136,120]
[380070641,1755529675127,-401.490804,0.00030136,120]
[380070642,1755529675174,-2458.58,0.00030136,120]
[380070643,1755529675222,-400.0,0.00030136,120]
[380070644,1755529675270,-1000.0,0.00030136,120]
[380070645,1755529675319,-400.0,0.00030136,120]
[380070646,1755529675369,-4912.96,0.00030136,120]
[380070647,1755529675416,-887.28,0.00030136,120]
[380070648,1755529675463,-580.09,0.00030136,120]
[380070649,1755529675512,-2595.41,0.00030136,120]
[380070650,1755529675559,-400.0,0.00030136,120]
[380070651,1755529675605,-1471.36,0.00030136,120]
[380070652,1755529675652,-400.0,0.00030136,120]
[380070653,1755529675696,-2603.45,0.00030136,120]
[380070654,1755529675742,-889.15,0.00030136,120]
[380070655,1755529675790,-400.0,0.00030136,120]
[380070656,1755529675839,-400.0,0.00030136,120]
[380070657,1755529675891,-979.46,0.00030136,120]
[380070658,1755529676211,-400.0,0.00030136,120]
[380070659,1755529676260,-332.71,0.00030136,120]
[380070660,1755529676309,-400.0,0.00030136,120]
[380070661,1755529676357,-824.68,0.00030136,120]
[380070662,1755529676404,-400.0,0.00030136,120]
[380070663,1755529676452,-1178.69,0.00030136,120]
[380070664,1755529676497,-400.0,0.00030136,120]
[380070665,1755529676543,-2810.64,0.00030136,120]
[380070666,1755529676593,-400.0,0.00030136,120]
[380070667,1755529676639,-2106.97,0.00030136,120]
[380070668,1755529676689,-3439.39,0.00030136,120]
[380070669,1755529676739,-1200.58,0.00030136,120]
[380070670,1755529676788,-2721.53,0.00030136,120]
[380070671,1755529676837,-400.0,0.00030136,120]
[380070672,1755529676886,-4225.76,0.00030136,120]
[380070673,1755529676933,-400.0,0.00030136,120]
[380070674,1755529676980,-817.42,0.00030136,120]
[380070675,1755529677032,-400.0,0.00030136,120]
[380070676,1755529677081,-520.26,0.00030136,120]
[380070677,1755529677129,-1234.18,0.00030136,120]
[380070678,1755529677176,-400.0,0.00030136,120]
[380070679,1755529677224,-400.0,0.00030136,120]
[380070680,1755529677272,-3176.97,0.00030136,120]
[380070681,1755529677333,-582.29,0.00030136,120]
[380070682,1755529677401,-497.78,0.00030136,120]
[380070683,1755529677448,-400.0,0.00030136,120]
[380070684,1755529677494,-3258.42,0.00030136,120]
[380070685,1755529677540,-400.0,0.00030136,120]
[380070686,1755529677584,-3062.41,0.00030136,120]
[380070687,1755529677626,-1784.0,0.00030136,120]
[380070688,1755529677669,-504.72420161,0.00030136,120]
[380070689,1755529677710,-780.36,0.00030136,120]
[380070690,1755529677753,-400.0,0.00030136,120]
[380070691,1755529677796,-1528.79,0.00030136,120]
[380070692,1755529677842,-2793.45,0.00030136,120]
[380070693,1755529677885,-400.0,0.00030136,120]
[380070694,1755529677930,-400.0,0.00030136,120]
[380070695,1755529677977,-697.33,0.00030136,120]
[380070696,1755529678025,-400.0,0.00030136,120]
[380070697,1755529678071,-400.0,0.00030136,120]
[380070698,1755529678119,-1534.11,0.00030136,120]
[380070699,1755529678166,-455.16,0.00030136,120]
[380070700,1755529678418,-400.0,0.00030136,120]
[380070701,1755529678464,-401.73769681,0.00030136,120]
[380070702,1755529678508,-1576.5,0.00030136,120]
[380070703,1755529678552,-430.00414883,0.00030136,120]
[380070704,1755529678597,-3795.72,0.00030136,120]
[380070705,1755529678640,-400.0,0.00030136,120]
[380070706,1755529678683,-456.6,0.00030136,120]
[380070707,1755529678733,-400.0,0.00030136,120]
[380070708,1755529678780,-1066.75,0.00030136,120]
[380070709,1755529678826,-400.0,0.00030136,120]
[380070710,1755529678872,-400.0,0.00030136,120]
[380070711,1755529678921,-400.0,0.00030136,120]
[380070712,1755529678966,-2051.88,0.00030136,120]
[380070713,1755529679010,-329.01084322,0.00030136,120]
[380070714,1755529679056,-400.0,0.00030136,120]
[380070715,1755529679101,-1031.42,0.00030136,120]
[380070716,1755529679148,-400.0,0.00030136,120]
[380070717,1755529679192,-410.37,0.00030136,120]
[380070718,1755529679236,-587.43,0.00030136,120]
[380070719,1755529679279,-3718.69,0.00030136,120]
[380070720,1755529679321,-400.0,0.00030136,120]
[380070721,1755529679365,-400.0,0.00030136,120]
[380070722,1755529679408,-697.48,0.00030136,120]
[380070723,1755529679449,-400.0,0.00030136,120]
[380070724,1755529679491,-3266.55,0.00030136,120]
[380070725,1755529679533,-429.84,0.00030136,120]
[380070726,1755529679575,-400.0,0.00030136,120]
[380070727,1755529679616,-639.05,0.00030136,120]
[380070728,1755529679656,-400.0,0.00030136,120]
[380070729,1755529679696,-400.0,0.00030136,120]
[380070730,1755529679738,-3759.21,0.00030136,120]
[380070731,1755529679778,-715.15,0.00030136,120]
[380070732,1755529679821,-400.0,0.00030136,120]
[380070733,1755529679866,-4987.33,0.00030136,120]
[380070734,1755529679911,-166.567925,0.00030136,120]
[380070735,1755529679959,-2581.59,0.00030136,120]
[380070736,1755529680008,-400.0,0.00030136,120]
[380070737,1755529680058,-160.605883,0.00030136,120]
[380070738,1755529680108,-400.0,0.00030136,120]
[380070739,1755529680159,-401.08218862,0.00030136,120]
[380070740,1755529680207,-3929.96,0.00030136,120]
[380070741,1755529680258,-400.0,0.00030136,120]
[380070742,1755529680305,-400.0,0.00030136,120]
[380070743,1755529680352,-400.0,0.00030136,120]
[380070744,1755529680401,-400.0,0.00030136,120]
[380070745,1755529680449,-152.957983,0.00030136,120]
[380070746,1755529680497,-960.77,0.00030136,120]
[380070747,1755529680545,-1474.93,0.00030136,120]
[380070748,1755529680591,-3324.93,0.00030136,120]
[380070749,1755529680637,-867.3,0.00030136,120]
[380070750,1755529680681,-628.53,0.00030136,120]
[380070751,1755529680723,-400.0,0.00030136,120]
[380070752,1755529680773,-1533.53,0.00030136,120]
[380070753,1755529681082,-679.22,0.00030136,120]
[380070754,1755529681128,-4621.64,0.00030136,120]
[380070755,1755529681173,-400.0,0.00030136,120]
[380070756,1755529681219,-2689.02,0.00030136,120]
[380070757,1755529681268,-2342.1,0.00030136,120]
[380070758,1755529681313,-400.0,0.00030136,120]
[380070759,1755529681358,-400.0,0.00030136,120]
[380070760,1755529681402,-484.8,0.00030136,120]
[380070761,1755529681444,-544.486073,0.00030136,120]
[380070762,1755529681488,-2335.03,0.00030136,120]
[380070763,1755529681532,-4638.9,0.00030136,120]
[380070764,1755529681574,-400.0,0.00030136,120]
[380070765,1755529681616,-400.0,0.00030136,120]
[380070766,1755529681659,-400.0,0.00030136,120]
[380070767,1755529681699,-400.0,0.00030136,120]
[380070768,1755529681742,-2241.14,0.00030136,120]
[380070769,1755529681787,-567.08,0.00030136,120]
[380070770,1755529681837,-445.8,0.00030136,120]
[380070771,1755529681887,-859.43,0.00030136,120]
[380070772,1755529681936,-400.0,0.00030136,120]
[380070773,1755529681984,-2837.07,0.00030136,120]
[380070774,1755529682034,-3018.49,0.00030136,120]
[380070775,1755529682083,-400.0,0.00030136,120]
[380070776,1755529682133,-1114.11,0.00030136,120]
[380070777,1755529682187,-400.0,0.00030136,120]
[380070778,1755529682238,-400.0,0.00030136,120]
[380070779,1755529682290,-1489.63,0.00030136,120]
[380070780,1755529682339,-910.02,0.00030136,120]
[380070781,1755529682389,-400.0,0.00030136,120]
[380070782,1755529682436,-1349.1,0.00030136,120]
[380070783,1755529682485,-400.0,0.00030136,120]
[380070784,1755529682531,-993.23,0.00030136,120]
[380070785,1755529682578,-3978.37,0.00030136,120]
[380070786,1755529682632,-1337.05,0.00030136,120]
[380070787,1755529682676,-1109.25,0.00030136,120]
[380070788,1755529682722,-672.3,0.00030136,120]
[380070789,1755529682787,-1293.75,0.00030136,120]
[380070790,1755529682837,-400.0,0.00030136,120]
[380070791,1755529682886,-400.0,0.00030136,120]
[380070792,1755529682932,-400.0,0.00030136,120]
[380070793,1755529682984,-400.0,0.00030136,120]
[380070794,1755529683031,-670.01,0.00030136,120]
[380070795,1755529683083,-2722.430366,0.00030136,120]
[380070796,1755529683134,-3508.36,0.00030136,120]
[380070797,1755529683182,-400.0,0.00030136,120]
[380070798,1755529683231,-2586.17,0.00030136,120]
[380070799,1755529683278,-455.2,0.00030136,120]
[380070800,1755529683325,-658.1,0.00030136,120]
[380070801,1755529683372,-1910.06,0.00030136,120]
[380070802,1755529683418,-400.0,0.00030136,120]
[380070803,1755529683468,-1964.23,0.00030136,120]
[380070804,1755529683521,-400.0,0.00030136,120]
[380070805,1755529683567,-3266.05,0.00030136,120]
[380070806,1755529683612,-1772.03,0.00030136,120]
[380070807,1755529683659,-2281.8,0.00030136,120]
[380070808,1755529683704,-400.0,0.00030136,120]
[380070809,1755529683747,-400.0,0.00030136,120]
[380070810,1755529683793,-400.0,0.00030136,120]
[380070811,1755529683841,-518.25140226,0.00030136,120]
[380070812,1755529683887,-403.52710211,0.00030136,120]
[380070813,1755529683935,-400.0,0.00030136,120]
[380070814,1755529683986,-507.28,0.00030136,120]
[380070815,1755529684050,-400.0,0.00030136,120]
[380070816,1755529684100,-1929.33,0.00030136,120]
[380070817,1755529684150,-400.0,0.00030136,120]
[380070818,1755529684199,-2001.01,0.00030136,120]
[380070819,1755529684247,-400.0,0.00030136,120]
[380070820,1755529684295,-400.0,0.00030136,120]
[380070821,1755529684344,-2079.31,0.00030136,120]
[380070822,1755529684390,-400.0,0.00030136,120]
[380070823,1755529684434,-2431.1,0.00030136,120]
[380070824,1755529684479,-400.0,0.00030136,120]
[380070825,1755529684524,-1785.29,0.00030136,120]
[380070826,1755529684570,-500.0,0.00030136,120]
[380070827,1755529684617,-400.0,0.00030136,120]
[380070828,1755529684661,-400.0,0.00030136,120]
[380070829,1755529684707,-472.89,0.00030136,120]
[380070830,1755529684754,-840.31,0.00030136,120]
[380070831,1755529684801,-493.71712769,0.00030136,120]
[380070832,1755529684848,-2881.18,0.00030136,120]
[380070833,1755529684895,-632.18,0.00030136,120]
[380070834,1755529684948,-400.0,0.00030136,120]
[380070835,1755529684995,-400.0,0.00030136,120]
[380070836,1755529685042,-416.06,0.00030136,120]
[380070837,1755529685089,-400.0,0.00030136,120]
[380070838,1755529685137,-400.0,0.00030136,120]
[380070839,1755529685185,-11282.17,0.00030136,120]
[380070840,1755529685241,-1090.28,0.00030136,120]
[380070841,1755529685294,-2803.12,0.00030136,120]
[380070842,1755529685343,-400.0,0.00030136,120]
[380070843,1755529685394,-400.0,0.00030136,120]
[380070844,1755529685440,-400.0,0.00030136,120]
[380070845,1755529685483,-400.0,0.00030136,120]
[380070846,1755529685525,-4965.06,0.00030136,120]
[380070847,1755529685933,-400.0,0.00030136,120]
[380070848,1755529685985,-400.0,0.00030136,120]
[380070849,1755529686032,-494.25,0.00030136,120]
[380070850,1755529686078,-674.56,0.00030136,120]
[380070851,1755529686124,-400.0,0.00030136,120]
[380070852,1755529686171,-400.0,0.00030136,120]
[380070853,1755529686217,-1938.26,0.00030136,120]
[380070854,1755529686266,-1052.59,0.00030136,120]
[380070855,1755529686311,-1829.55,0.00030136,120]
[380070856,1755529686356,-401.4832159,0.00030136,120]
[380070857,1755529686402,-400.0,0.00030136,120]
[380070858,1755529686446,-3844.91,0.00030136,120]
[380070859,1755529686492,-4062.9,0.00030136,120]
[380070860,1755529686541,-880.77,0.00030136,120]
[380070861,1755529686583,-514.82,0.00030136,120]
[380070862,1755529686624,-400.0,0.00030136,120]
[380070863,1755529686664,-400.0,0.00030136,120]
[380070864,1755529686706,-400.0,0.00030136,120]
[380070865,1755529686757,-400.0,0.00030136,120]
[380070866,1755529686828,-874.07,0.00030136,120]
[380070867,1755529686883,-400.0,0.00030136,120]
[380070868,1755529686939,-665.4,0.00030136,120]
[380070869,1755529686994,-400.0,0.00030136,120]
[380070870,1755529687040,-910.06,0.00030136,120]
[380070871,1755529687086,-400.0,0.00030136,120]
[380070872,1755529687130,-400.0,0.00030136,120]
[380070873,1755529687175,-400.0,0.00030136,120]
[380070874,1755529687221,-1621.48,0.00030136,120]
[380070875,1755529687268,-460.68,0.00030136,120]
[380070876,1755529687310,-2323.55,0.00030136,120]
[380070877,1755529687353,-1896.51,0.00030136,120]
[380070878,1755529687398,-678.13,0.00030136,120]
[380070879,1755529687442,-1677.94,0.00030136,120]
[380070880,1755529687491,-400.0,0.00030136,120]
[380070881,1755529687537,-521.32,0.00030136,120]
[380070882,1755529687581,-400.0,0.00030136,120]
[380070883,1755529687622,-1553.24,0.00030136,120]
[380070884,1755529687662,-400.0,0.00030136,120]
[380070885,1755529687702,-400.0,0.00030136,120]
[380070886,1755529687742,-400.0,0.00030136,120]
[380070887,1755529687786,-4134.12,0.00030136,120]
[380070888,1755529687836,-400.0,0.00030136,120]
[380070889,1755529687887,-854.33,0.00030136,120]
[380070890,1755529687936,-490.56,0.00030136,120]
[380070891,1755529687983,-740.43,0.00030136,120]
[380070892,1755529688028,-400.0,0.00030136,120]
[380070893,1755529688073,-2097.16,0.00030136,120]
[380070894,1755529688119,-150.1853236,0.00030136,120]
[380070895,1755529688161,-1645.66,0.00030136,120]
[380070896,1755529688202,-400.0,0.00030136,120]
[380070897,1755529688245,-400.0,0.00030136,120]
[380070898,1755529688289,-400.0,0.00030136,120]
[380070899,1755529688332,-1005.76,0.00030136,120]
[380070900,1755529688375,-400.0,0.00030136,120]
[380070901,1755529688417,-1501.06,0.00030136,120]
[380070902,1755529688460,-413.0888964,0.00030136,120]
[380070903,1755529688503,-400.0,0.00030136,120]
[380070904,1755529688542,-400.0,0.00030136,120]
[380070905,1755529688584,-2548.71,0.00030136,120]
[380070906,1755529688625,-400.0,0.00030136,120]
[380070907,1755529688668,-479.15,0.00030136,120]
[380070908,1755529688711,-481.86,0.00030136,120]
[380070909,1755529688755,-4205.6,0.00030136,120]
[380070910,1755529688799,-400.0,0.00030136,120]
[380070911,1755529688846,-4610.97,0.00030136,120]
[380070912,1755529688889,-1457.29,0.00030136,120]
[380070913,1755529688934,-965.19,0.00030136,120]
[380070914,1755529688979,-400.0,0.00030136,120]
[380070915,1755529689029,-1518.3,0.00030136,120]
[380070916,1755529689076,-4156.26,0.00030136,120]
[380070917,1755529689128,-536.38,0.00030136,120]
[380070918,1755529689175,-2455.64,0.00030136,120]
[380070919,1755529689223,-400.0,0.00030136,120]
[380070920,1755529689275,-776.66,0.00030136,120]
[380070921,1755529689322,-4413.44,0.00030136,120]
[380070922,1755529689365,-400.0,0.00030136,120]
[380070923,1755529689412,-400.0,0.00030136,120]
[380070924,1755529689463,-4603.47,0.00030136,120]
[380070925,1755529689517,-1314.52,0.00030136,120]
[380070926,1755529689567,-3954.23,0.00030136,120]
[380070927,1755529689625,-400.0,0.00030136,120]
[380070928,1755529689691,-400.0,0.00030136,120]
[380070929,1755529689742,-400.0,0.00030136,120]
[380070930,1755529689789,-539.57,0.00030136,120]
[380070931,1755529689837,-400.0,0.00030136,120]
[380070932,1755529689886,-400.0,0.00030136,120]
[380070933,1755529689935,-400.0,0.00030136,120]
[380070934,1755529689982,-1390.53,0.00030136,120]
[380070935,1755529690030,-400.0,0.00030136,120]
[380070936,1755529690084,-400.0,0.00030136,120]
[380070937,1755529690137,-400.0,0.00030136,120]
[380070938,1755529690188,-4443.91,0.00030136,120]
[380070939,1755529690231,-400.0,0.00030136,120]
[380070940,1755529690275,-3493.19,0.00030136,120]
[380070941,1755529690720,-545.95,0.00030136,120]
[380070942,1755529690771,-400.0,0.00030136,120]
[380070943,1755529690817,-400.0,0.00030136,120]
[380070944,1755529690862,-897.51,0.00030136,120]
[380070945,1755529690907,-400.0,0.00030136,120]
[380070946,1755529690952,-2378.76,0.00030136,120]
[380070947,1755529690997,-400.0,0.00030136,120]
[380070948,1755529691041,-781.29,0.00030136,120]
[380070949,1755529691088,-400.0,0.00030136,120]
[380070950,1755529691132,-400.0,0.00030136,120]
[380070951,1755529691175,-400.0,0.00030136,120]
[380070952,1755529691218,-1711.21,0.00030136,120]
[380070953,1755529691259,-400.0,0.00030136,120]
[380070954,1755529691298,-400.0,0.00030136,120]
[380070955,1755529691340,-400.0,0.00030136,120]
[380070956,1755529691387,-400.0,0.00030136,120]
[380070957,1755529691430,-400.0,0.00030136,120]
[380070958,1755529691474,-549.08,0.00030136,120]
[380070959,1755529691519,-946.32,0.00030136,120]
[380070960,1755529691563,-400.0,0.00030136,120]
[380070961,1755529691607,-400.0,0.00030136,120]
[380070962,1755529691650,-1986.22,0.00030136,120]
[380070963,1755529691697,-409.96,0.00030136,120]
[380070964,1755529691743,-289.18727432,0.00030136,120]
[380070965,1755529691790,-741.81,0.00030136,120]
[380070966,1755529691840,-434.17,0.00030136,120]
[380070967,1755529691890,-400.0,0.00030136,120]
[380070968,1755529691947,-400.0,0.00030136,120]
[380070969,1755529691995,-4155.02,0.00030136,120]
[380070970,1755529692045,-627.43,0.00030136,120]
[380070971,1755529692096,-513.5,0.00030136,120]
[380070972,1755529692145,-400.0,0.00030136,120]
[380070973,1755529692195,-400.0,0.00030136,120]
[380070974,1755529692245,-400.0,0.00030136,120]
[380070975,1755529692293,-400.0,0.00030136,120]
[380070976,1755529692343,-4815.87,0.00030136,120]
[380070977,1755529692393,-2411.0,0.00030136,120]
[380070978,1755529692444,-400.0,0.00030136,120]
[380070979,1755529692494,-400.0,0.00030136,120]
[380070980,1755529692545,-2201.86,0.00030136,120]
[380070981,1755529692594,-400.0,0.00030136,120]
[380070982,1755529692642,-724.92,0.00030136,120]
[380070983,1755529692693,-400.0,0.00030136,120]
[380070984,1755529692764,-400.0,0.00030136,120]
[380070985,1755529692815,-1292.9,0.00030136,120]
[380070986,1755529692866,-423.09,0.00030136,120]
[380070987,1755529692915,-400.0,0.00030136,120]
[380070988,1755529692966,-1161.29,0.00030136,120]
[380070989,1755529693016,-400.0,0.00030136,120]
[380070990,1755529693068,-1159.49,0.00030136,120]
[380070991,1755529693119,-6265.44,0.00030136,120]
[380070992,1755529693167,-400.0,0.00030136,120]
[380070993,1755529693216,-703.21,0.00030136,120]
[380070994,1755529693265,-2226.23,0.00030136,120]
[380070995,1755529693315,-400.0,0.00030136,120]
[380070996,1755529693365,-2342.58,0.00030136,120]
[380070997,1755529693417,-2116.95,0.00030136,120]
[380070998,1755529693467,-400.0,0.00030136,120]
[380070999,1755529693519,-830.27,0.00030136,120]
[380071000,1755529693569,-1023.97,0.00030136,120]
[380071001,1755529693619,-2579.53,0.00030136,120]
[380071002,1755529693668,-609.32,0.00030136,120]
[380071003,1755529693721,-400.0,0.00030136,120]
[380071004,1755529693773,-400.0,0.00030136,120]
[380071005,1755529693826,-3555.22,0.00030136,120]
[380071006,1755529693876,-400.0,0.00030136,120]
[380071007,1755529693926,-400.0,0.00030136,120]
[380071008,1755529693976,-400.0,0.00030136,120]
[380071009,1755529694026,-640.79,0.00030136,120]
[380071010,1755529694075,-612.11,0.00030136,120]
[380071011,1755529694123,-400.0,0.00030136,120]
[380071012,1755529694170,-400.0,0.00030136,120]
[380071013,1755529694221,-914.5,0.00030136,120]
[380071014,1755529694272,-238.64576508,0.00030136,120]
[380071015,1755529694323,-2762.8,0.00030136,120]
[380071016,1755529694372,-400.0,0.00030136,120]
[380071017,1755529694417,-400.0,0.00030136,120]
[380071018,1755529694463,-2988.46,0.00030136,120]
[380071019,1755529694512,-400.0,0.00030136,120]
[380071020,1755529694556,-5457.83,0.00030136,120]
[380071021,1755529694601,-4818.31,0.00030136,120]
[380071022,1755529694644,-400.0,0.00030136,120]
[380071023,1755529694685,-400.0,0.00030136,120]
[380071024,1755529694732,-400.0,0.00030136,120]
[380071025,1755529694780,-400.0,0.00030136,120]
[380071026,1755529694826,-400.0,0.00030136,120]
[380071027,1755529694872,-400.0,0.00030136,120]
[380071028,1755529694918,-400.40275901,0.00030136,120]
[380071029,1755529694964,-400.0,0.00030136,120]
[380071030,1755529695010,-400.0,0.00030136,120]